Cogmind - Beta 13 @@@ ROGUE MODE // 2024.03.14 @ 14:00:09 Player: TheLargestBoi Result: Self-destructed Performance ------------- Evolutions (1) 500 Regions Visited (2) 400 Robots Destroyed (25) 125 Value Destroyed (644) 644 Prototype IDs (3) 60 Alien Tech Used (0) 0 Bonus (0) 0 TOTAL SCORE: 1729 Bonus ------- None Cogmind --------- Core Integrity 347/400 Matter 300/300 Energy 100/100 System Corruption 0% Temperature Warm (129) Movement Walking (120) Location -9/Materials Parts ------- > --- POWER (1) -------- (None) > --- PROPULSION (3) --- Aluminum Leg Aluminum Leg > --- UTILITY (3) ------ Medium Storage Unit Improved Terrain Scanner Improved Targeting Computer > --- WEAPON (2) ------- Medium Laser Medium Laser > --- INVENTORY (10) --- Light Nuclear Core Aluminum Leg Improved Heat Sink Visual Processing Unit Signal Interpreter Improved Targeting Computer Medium Laser Grenade Launcher Mining Laser Peak State ------------ > --- POWER ------------ Ion Engine > --- PROPULSION ------- Aluminum Leg Aluminum Leg Aluminum Leg > --- UTILITY ---------- Medium Storage Unit Improved Terrain Scanner Improved Targeting Computer > --- WEAPON ----------- Medium Laser Medium Laser > --- INVENTORY -------- Light Nuclear Core Aluminum Leg Signal Interpreter Improved Targeting Computer Medium Laser Medium Laser Grenade Launcher Mining Laser [Rating: 13] Favorites ----------- Power Ion Engine Engine Ion Engine Propulsion Aluminum Leg Leg Aluminum Leg Utility Improved Terrain Scanner Device Improved Terrain Scanner Storage Medium Storage Unit Processor Improved Targeting Computer Weapon Medium Laser Energy Gun Medium Laser Launcher Grenade Launcher Special Weapon Mining Laser Build | -11 -10 -9 ------- Run | Yrd Mat Mat Slots Evolved 2 | . . 2 Power . | . . . Propulsion 1 | . . 1 Utility 1 | . . 1 Weapon . | . . . Parts Attached 25 | 7 11 7 Power 2 | 1 1 . Engine 2 | 1 1 . Core . | . . . Reactor . | . . . Propulsion 9 | 2 5 2 Treads . | . . . Leg 9 | 2 5 2 Wheel . | . . . Hover . | . . . Flight . | . . . Utility 4 | 2 1 1 Device 1 | 1 . . Storage 2 | 1 1 . Processor 1 | . . 1 Hackware . | . . . Protection . | . . . Artifact . | . . . Weapon 10 | 2 4 4 Energy Gun 7 | 2 2 3 Energy Cannon . | . . . Ballistic Gun . | . . . Ballistic Cannon . | . . . Launcher 2 | . 1 1 Special Weapon 1 | . 1 . Impact Weapon . | . . . Slashing Weapon . | . . . Piercing Weapon . | . . . Special Melee Weapon . | . . . Unidentified Prototypes . | . . . Parts Lost 4 | . . 4 Power 1 | . . 1 Propulsion 2 | . . 2 Utility . | . . . Weapon 1 | . . 1 Highest Loss Streak 3 | . . 3 To Critical Strikes . | . . . Average Slot Usage (%) 97 | . 98 96 Engine 13 | . 14 10 Leg 28 | . 28 30 Device 13 | . 14 11 Storage 13 | . 14 11 Processor 3 | . . 11 Energy Gun 24 | . 25 20 Naked Turns . | . . . Heaviest Build 20 | 15 20 20 Greatest Support 30 | 20 20 30 Greatest Overweight (x) 1 | 1 . 1 Average Overweight (x) . | . . . Largest Inventory Capacity 10 | 8 10 10 Average Capacity 9 | 7 9 10 Most Carried 10 | 3 10 9 Average Carried 8 | 1 8 8 Final Capacity 10 | 8 10 10 Final Carried 10 | 3 10 9 Class Distribution -------------------- 56% | Mutant 43% | Scavenger-Mutant Dominant Class ---------------- Scavenger-Mutant | -10/Materials Mutant | -9/Materials Resources | -11 -10 -9 ----------- Run | Yrd Mat Mat Matter Collected 522 | 164 263 95 Remotely . | . . . Salvage Created 895 | 20 602 273 Parts 45 | 3 28 14 Haulers Intercepted 3 | . 2 1 Recyclers Shooed 8 | 1 7 . Parts Field Recycled . | . . . Retrieved Matter . | . . . Parts Self-Destructed . | . . . Prevented . | . . . Kills | -11 -10 -9 ------- Run | Yrd Mat Mat Combat Hostiles Destroyed 14 | . 9 5 Guns 5 | . 3 2 AOE 8 | . 5 3 Classes Destroyed 7 | 1 4 2 Builder 1 | . . 1 Tunneler 1 | 1 . . Hauler 3 | . 2 1 Recycler 2 | . 2 . Watcher 4 | . 3 1 Grunt 12 | . 9 3 Sentry 2 | . . 2 Best Kill Streak 9 | 1 9 6 Combat Bots Only 7 | . 7 4 Max Kills in Single Turn 3 | 1 3 2 Gunslinging . | . . . Exploded 2 | . 1 2 Melee . | . . . Uniques/NPCs Destroyed . | . . . Combat | -11 -10 -9 -------- Run | Yrd Mat Mat Hostile Shots Fired 94 | . 41 53 Missed 26 | . 10 16 Damage Taken 962 | . 446 516 Core 158 | . 105 53 Absorbed by Shields . | . . . Regen/Repaired (Parts) 82 | . . 82 Core Remaining (%) 79 | 100 58 . Volleys Fired 75 | 4 46 25 Largest 2 | 2 2 2 Hottest 150 | 100 150 100 Shots Fired 133 | 8 76 49 Gun 116 | 8 63 45 Cannon . | . . . Launcher 10 | . 6 4 Special 7 | . 7 . Kinetic . | . . . Thermal 123 | 8 70 45 Explosive 10 | . 6 4 Electromagnetic . | . . . Robot Hit Streak 12 | 2 10 12 Robot Miss Streak 3 | 2 2 3 Penetration Max . | . . . Secondary Targets . | . . . Shots Hit Robots 77 | 3 44 30 Core Hits 50 | 1 31 18 Critical Kills . | . . . Critical Parts Destroyed . | . . . Critical Strikes 3 | . 2 1 Burn 3 | . 2 1 Melee Attacks . | . . . Impact . | . . . Slashing . | . . . Piercing . | . . . Sneak Attacks . | . . . Combat Hostiles . | . . . Follow-up Attacks . | . . . Damage Inflicted 1917 | 37 1134 746 Guns 955 | 37 526 392 Cannons . | . . . Explosions 938 | . 584 354 Melee . | . . . Ramming 24 | . 24 . Kinetic . | . . . Thermal 955 | 37 526 392 Explosive 938 | . 584 354 Electromagnetic . | . . . Impact . | . . . Slashing . | . . . Piercing . | . . . Highest Corruption . | . . . Average Corruption . | . . . Corruption Purged . | . . . Corruption Blocked . | . . . Overload Shots . | . . . Overflow Damage 31 | . 1 30 Projectiles . | . . . Explosions 31 | . 1 30 Melee . | . . . Knockbacks . | . . . Impact . | . . . Kinetic . | . . . Secondary . | . . . Self-Inflicted Damage 70 | . 59 11 Shots 4 | . 3 1 Rammed . | . . . Targets Rammed 6 | . 6 . Kicked 6 | . 6 . Crushed . | . . . Highest Temperature 294 | 120 294 207 Average Temperature 77 | 61 81 72 Received Heat Transfer 453 | . 222 231 Siege Activations . | . . . Robots Corrupted . | . . . Combat Hostiles . | . . . Parts Fried . | . . . Impact Corruptions . | . . . Robots Melted 1 | . 1 . Combat Hostiles 1 | . 1 . Parts Melted 9 | . 6 3 Heat Transferred 3034 | 111 1702 1221 Parts Sabotaged . | . . . Parts Stolen . | . . . Parts Stripped . | . . . Power Chain Reactions . | . . . Alert | -11 -10 -9 ------- Run | Yrd Mat Mat Peak Influence 327 | 5 327 200 Initial 21 | . 3 21 Average 105 | 2 122 76 Maximum Alert Level 1 | . 1 1 Low Security (%) 85 | 100 82 92 Level 1 14 | . 17 7 Level 2 . | . . . Level 3 . | . . . Level 4 . | . . . Level 5 . | . . . High Security . | . . . Max Security . | . . . Squads Dispatched 2 | . 1 1 Investigation 1 | . 1 . Extermination . | . . . Reinforcement 1 | . . 1 Assault . | . . . Garrison . | . . . Intercept . | . . . Searches Triggered . | . . . Construction Impeded 1 | . . 1 Haulers Reinforced . | . . . Active Scanning Responses . | . . . Cargo Convoy Interrupts . | . . . Stealth | -11 -10 -9 --------- Run | Yrd Mat Mat Distress Signals 1 | . . 1 Communications Jammed . | . . . Distress Signals . | . . . Times Spotted 30 | . 19 11 Peak Tracking Total 6 | . 6 5 Tactical Retreats 2 | . 2 . Traps | -11 -10 -9 ------- Run | Yrd Mat Mat Traps Triggered . | . . . Indirectly . | . . . Trap Hack Attempts . | . . . Triggered . | . . . Disarmed 3 | . 3 . Reprogrammed . | . . . Reused . | . . . Traps Extracted . | . . . Installed . | . . . Triggered . | . . . Machines | -11 -10 -9 ---------- Run | Yrd Mat Mat Machines Disabled . | . . . Max in Single Turn . | . . . Machines Repaired . | . . . Machines Dismantled . | . . . Machines Sabotaged . | . . . Overloaded Fab Kills . | . . . Hacking | -11 -10 -9 --------- Run | Yrd Mat Mat Machines Accessed 9 | . 8 1 Terminals 7 | . 7 . Fabricators . | . . . Repair Stations 1 | . . 1 Recycling Units 1 | . 1 . Scanalyzers . | . . . Garrison Access . | . . . Total Hacks 31 | . 26 5 Successful 16 | . 12 4 Failed 15 | . 14 1 Catastrophic 1 | . 1 . Database Lockouts . | . . . Manual 22 | . 22 . Terminals 23 | . 23 . Fabricators . | . . . Repair Stations 5 | . . 5 Recycling Units 3 | . 3 . Scanalyzers . | . . . Garrison Access . | . . . Terminal Hacks 6 | . 6 . Prototype ID Bank 2 | . 2 . Terminal Index 1 | . 1 . Alert Level 1 | . 1 . Disarm Traps 1 | . 1 . Surveillance Status 1 | . 1 . Fabricator Hacks . | . . . Repair Station Hacks 4 | . . 4 Scan Component 2 | . . 2 Repair 2 | . . 2 Recycling Unit Hacks 1 | . 1 . Report Inventory 1 | . 1 . Scanalyzer . | . . . Garrison Access Hacks . | . . . Unauthorized Hacks 5 | . 5 . Terminals 4 | . 4 . Assimilate 2 | . 2 . Botnet 1 | . 1 . Operators 1 | . 1 . Fabricators . | . . . Repair Stations . | . . . Recycling Units 1 | . 1 . Reject 1 | . 1 . Scanalyzers . | . . . Garrison Access . | . . . Data Cores Recovered . | . . . Used . | . . . Hacking Detections 7 | . 6 1 Full Trace Events 1 | . 1 . Feedback Events . | . . . Feedback Blocked . | . . . Robot Schematics Acquired . | . . . Robots Built . | . . . Authchips . | . . . Time . | . . . Total Robot Build Rating . | . . . Part Schematics Acquired . | . . . Parts Built . | . . . Authchips . | . . . Time . | . . . Total Part Build Rating . | . . . Parts Repaired 2 | . . 2 Time 52 | . . 52 Parts Recycled . | . . . Recycled Matter . | . . . Retrieved Matter . | . . . Retrieved Components . | . . . Parts Scanalyzed . | . . . Part Schematics Acquired . | . . . Parts Damaged . | . . . Bothacking | -11 -10 -9 ------------ Run | Yrd Mat Mat Used RIF Installer . | . . . Robots Hacked . | . . . Non-combat . | . . . Combat . | . . . Robot Hacks Applied . | . . . Relay Couplers Released . | . . . Fabnet Peak Effective % . | . . . Robots Rewired . | . . . Allies Hacked . | . . . Hacks Repelled . | . . . Allies | -11 -10 -9 -------- Run | Yrd Mat Mat Total Allies 1 | . 1 . Largest Group 1 | . 1 1 Highest-Rated Group 10 | . 10 10 Highest-Rated Ally 10 | . 10 10 Total Orders 5 | . 2 3 STAY 3 | . 1 2 FOLLOW 2 | . 1 1 Ally Attacks . | . . . Total Damage . | . . . Kills . | . . . Allies Corrupted . | . . . Allies Melted . | . . . Intel | -11 -10 -9 ------- Run | Yrd Mat Mat Robot Analysis Total . | . . . Derelict Logs Recovered . | . . . Drone Launches . | . . . Drone Recoveries . | . . . Exploration | -11 -10 -9 ------------- Run | Yrd Mat Mat Turns Passed 1450 | 71 1006 373 Spaces Moved 834 | 38 609 187 Core 6 | 6 . . Treads . | . . . Legs 828 | 32 609 187 Wheels . | . . . Hover . | . . . Flight . | . . . Fastest Speed 50 | 50 120 120 Average Speed 120 | 115 120 121 Slowest Speed 190 | 120 120 190 Overloaded Moves . | . . . Propulsion Burnouts . | . . . Robots Hopped . | . . . Cave-ins Triggered . | . . . Exploration Rate (%) 36 | 4 84 20 Regions Visited 2 Branch Regions . Pre-discovered Areas . | . . . Known Exits Taken . | . . . Unknown Exits Taken 2 | 1 1 . Scrap Searched . | . . . Spaces Dug 2 | . 2 . Terrain Destroyed 55 | . 39 16 Melee . | . . . Projectile 2 | . 2 . AOE 53 | . 37 16 Terrain Rammed . | . . . Walls Destroyed . | . . . Machines Disabled . | . . . Actions | -11 -10 -9 --------- Run | Yrd Mat Mat Total 1130 | 53 797 280 Wait 161 | 2 101 58 Move 832 | 37 608 187 Hop . | . . . Pick Up 18 | 3 12 3 Fast Attach 9 | 7 . 2 Attach 4 | . 1 3 Detach 1 | . 1 . Swap 12 | . 10 2 Drop 12 | . 12 . Fire 75 | 4 46 25 Melee . | . . . Ram . | . . . Kick 6 | . 6 . Crush . | . . . Escape Stasis . | . . . Rewire . | . . . Trap . | . . . Miscellaneous . | . . . Route ------- -11/Scrapyard -10/Materials (discovered 4 exits: *Mat x3 / [*Min]) -9/Materials (discovered 1 exit: [*Sto]) History --------- Turn | Location | Event 17 | -11/Scrapyard | Discovered new exit (range 15) 72 | -11/Scrapyard | Entered Materials 302 | -10/Materials | Build established: Mutant 338 | -10/Materials | Destroyed 7 combat bots 374 | -10/Materials | Discovered new exit (range 15) 465 | -10/Materials | Discovered new exit (range 16) 631 | -10/Materials | Build established: Scavenger-Mutant 735 | -10/Materials | Discovered new exit (range 9) 901 | -10/Materials | Discovered new exit (range 16) 1078 | -10/Materials | Entered another Materials area 1078 | -9/Materials | Accompanied by 1 ally 1078 | -9/Materials | Evolved 2 slots: Propulsion x1, Utility x1 1115 | -9/Materials | Repaired Grenade Launcher 1144 | -9/Materials | Repaired Med. Laser 1163 | -9/Materials | Discovered new exit (range 10) 1241 | -9/Materials | Build established: Mutant 1445 | -9/Materials | Lost 3 parts (2n1w) 1451 | -9/Materials | Self-destructed Last Messages --------------- payload. 01439_ B-36 Bruiser unfolds itself. 01439_ G-34 Mercenary unfolds itself. 01439_ Acquired 5 matter. 01440_ K-01 Serf collects debris. 01440_ U-05 Engineer lays Concrete. 01441_ U-05 Engineer builds a Wall. 01442_ U-05 Engineer lays Concrete. 01443_ U-05 Engineer builds a Wall. 01444_ U-05 Engineer lays Concrete. 01444_ U-05 Engineer builds a Wall. 01445_ U-05 Engineer lays Concrete. 01447_ K-01 Serf collects debris. 01447_ U-05 Engineer lays Concrete. 01447_ U-05 Engineer builds a Wall. 01448_ Ion Engine destroyed. 01449_ *bobby reports 0b10 security level has lowered to 0. 01449_ U-05 Engineer builds a Wall. 01450_ K-01 Serf collects debris. Map ----- +----------------------------------------------------+ | ?????????????????????????????????????????????????? | | ?????????????????????????????????????????????????? | | ?????????????????????????????????????????????????? | | ?????????????????????????????????????????????????? | | ?????????????????????????????????????????????????? | | ???????????????????????? ^????????????????????? | | ??????????????????????# ^????????????????????? | | ??????????????????????# ^????????????????????? | | ??????????????????????# ^????????????????????? | | ??????????????????????# "^????????????????????? | | ??????????????????????# %#????#???????????????? | | ???????????????? ????## #####????????????????? | | ?????????????????????# !##???????????????? | | ????????????????????## | !#?????#?????????? | | ???????????????????### % !#???????????????? | | ???????????????????? !#?#?????????????? | | ?????????????????????# ?????????????????? | | ????????????????????## *ggb ????????#?????????? | | ????????????????????# !% ##??????????????????? | | ????????????????????## # ###########???????????? | | ????????????????#??## # u# #???????#???? | | ???????????#????????####= u# #######?????? | | ??????????????????#???##u u# ## #?????? | | ?????????????#????????## !o# ## ##????? | | ?????????????????????## *%=###+######## #?????? | | ??????????????????????## @ ####### #?????? | | ???????????????????????# + #?????? | | ???????????????????????#k! ####### #?#???? | | ??????????????##########g** #???# #?????? | | ??????????????# !g* #?#?# #?????? | | ??????????????# ! #???# #?????? | | ??????????????# #???######?????? | | ??????????????# #??????????????? | | ??????????????# #??????????????? | | ??????????????# ##### #?#????????????? | | ??????????????# #???# ########????#??? | | ??????????????# #???# # #???????? | | ??????????????#^^^#???# # #???????? | | ??????????????# #???# # #?#?????? | | ??????????????# #???####### # #???????? | | ???????????#??# ########### # #???????? | | ??????????????# # ### # #???????? | | ??????????????# + #?# ##+#######?????? | | ???????? ???## # #?#% # #?????? | | ???#??? ?????## #########?# + #?????? | | ?????????????# #??????#?# # #?????? | | ???????????#?# #??#?????# ## #?????? | | ?????#???????# < ##?#??#??# #?? #?#???? | | ?????????????# ########?# #?? #??#??? | | ?????????????# # #?# #??? #?????? | +----------------------------------------------------+ Best States ------------- Heat Dissipation 28 Energy Generation 10 Energy Capacity 250 Matter Stores 300 Matter Capacity 300 Sight Range 16 Terrain Scan Range 16 Terrain Scan Density 10 Evasion (%) 55 Targeting Accuracy 6 Item Schematics ----------------- None Robot Schematics ------------------ None Fabricated ------------ Nothing Alien Tech Used ----------------- None Achievements -------------- None Challenges ------------ None Game ------ Seed ThermicTitaniumCapacitor Manual? 0 Play Time 00:16:39 Cumulative 21.8 hours Start 2024.03.14 @ 13:28:08 End 2024.03.14 @ 14:00:09 Sessions 1 Manual Loads 0 Difficulty Rogue Special Mode None Game No. 47 Rogue 47 Adventurer 0 Explorer 0 Win Type - Total 1 Types 1/0/0/0/0/0/0/0/0 Lore% 15 Gallery% 26 Achievement% 32 Wizard Run 0 Options --------- Layout 1 ASCII 0 Keyboard 0 Movement Numpad Keybinds 0 Fullscreen 1 Font 24/Smallcaps Map View 50x35 Zoom Use 0% Tactical HUD 1 Map Filters NONE Filters NONE Steam 1 RUN: 931cfe95-6333-4cc3-bac0-c5ffbc058ec9